fUSD/lending_fUSD_20260610
["ID","MTS","AMOUNT","RATE_DAILY","PERIOD"]
[424696648,1781057451000,-1747.91581194,0.000217,2]
[424696647,1781057451000,-6931.97,0.00021696,2]
[424696649,1781057451000,-506.43023034,0.00021737,2]
[424696652,1781057451000,-500.0,0.00021808,2]
[424696654,1781057451000,-1654.80926452,0.000219,2]
[424696628,1781057451000,-242.15909246,0.00021687,2]
[424696656,1781057451000,-1747.91581194,0.000219,2]
[424696660,1781057451000,-160.04083685,0.00021917,3]
[424696662,1781057451000,-1877.46286351,0.00021918,2]
[424696671,1781057451000,-5000.0,0.00021918,2]
[424696664,1781057451000,-503.48023372,0.00021918,2]
[424696669,1781057451000,-151.0,0.00021918,2]
[424696667,1781057451000,-151.0,0.00021918,2]
[424696673,1781057451000,-1008.08,0.00021918,2]
[424696682,1781057451000,-150.0,0.00021918,2]
[424696675,1781057451000,-261.737238,0.00021918,2]
[424696565,1781057451000,-5259.416845,0.000215,2]
[424696677,1781057451000,-150.0,0.00021918,2]
[424696657,1781057451000,-160.0,0.00021917,2]
[424696631,1781057451000,-151.0,0.00021687,2]
[424696680,1781057451000,-150.0,0.00021918,2]
[424696637,1781057451000,-151.0,0.00021687,2]
[424696624,1781057451000,-201.93286098,0.00021687,2]
[424696571,1781057451000,-602.027517,0.000215,2]
[424696574,1781057451000,-602.027517,0.000215,2]
[424696578,1781057451000,-151.0,0.000215,2]
[424696576,1781057451000,-602.027517,0.000215,2]
[424696587,1781057451000,-556.403067,0.000215,2]
[424696580,1781057451000,-151.0,0.000215,2]
[424696590,1781057451000,-556.403067,0.000215,2]
[424696582,1781057451000,-151.0,0.000215,2]
[424696585,1781057451000,-556.403067,0.000215,2]
[424696592,1781057451000,-151.0,0.000215,2]
[424696596,1781057451000,-151.0,0.000215,2]
[424696569,1781057451000,-602.027517,0.000215,2]
[424696610,1781057451000,-239.344721,0.00021652,2]
[424696598,1781057451000,-1361.8832415,0.00021552,2]
[424696622,1781057451000,-310.078125,0.00021687,2]
[424696617,1781057451000,-300.0,0.00021685,2]
[424696619,1781057451000,-188.41146214,0.00021687,2]
[424696615,1781057451000,-239.344721,0.00021652,2]
[424696626,1781057451000,-200.0,0.00021687,2]
[424696612,1781057451000,-239.344721,0.00021652,2]
[424696607,1781057451000,-239.344721,0.00021652,2]
[424696605,1781057451000,-361.76113529,0.00021651,2]
[424696600,1781057451000,-1654.80926452,0.000216,2]
[424696594,1781057451000,-556.403067,0.000215,2]
[424696603,1781057451000,-300.0,0.00021651,2]
[424696749,1781057452000,-692.0,0.00022,2]
[424696742,1781057452000,-877.0,0.00022,2]
[424696743,1781057452000,-684.0,0.00022,2]
[424696745,1781057452000,-800.0,0.00022,2]
[424696755,1781057452000,-1335.32,0.00022,2]
[424696744,1781057452000,-3594.0,0.00022,2]
[424696746,1781057452000,-1366.0,0.00022,2]
[424696751,1781057452000,-752.0,0.00022,2]
[424696753,1781057452000,-4559.0,0.00022,2]
[424696741,1781057452000,-2186.0,0.00022,2]
[424696764,1781057452000,-244.44074713,0.0002211,2]
[424696747,1781057452000,-379.0,0.00022,2]
[424696748,1781057452000,-450.0,0.00022,2]
[424696750,1781057452000,-846.0,0.00022,2]
[424696757,1781057452000,-835.0,0.00022,2]
[424696759,1781057452000,-200.0,0.00022034,2]
[424696761,1781057452000,-528.81835565,0.000221,7]
[424696768,1781057452000,-1125.0,0.00022214,2]
[424696772,1781057452000,-151.0,0.00022234,2]
[424696771,1781057452000,-225.18697532,0.00022233,2]
[424696773,1781057452000,-599.60298507,0.00022234,2]
[424696738,1781057452000,-162.0,0.00022,6]
[424696752,1781057452000,-2363.0,0.00022,2]
[424696731,1781057452000,-200.0,0.00021918,2]
[424696713,1781057452000,-1288.0,0.00021918,2]
[424696739,1781057452000,-816.1854511,0.00022,7]
[424696686,1781057452000,-298.0,0.00021918,2]
[424696684,1781057452000,-150.0,0.00021918,2]
[424696702,1781057452000,-166.0,0.00021918,2]
[424696689,1781057452000,-166.0,0.00021918,2]
[424696691,1781057452000,-166.0,0.00021918,2]
[424696693,1781057452000,-166.0,0.00021918,2]
[424696705,1781057452000,-166.0,0.00021918,2]
[424696698,1781057452000,-166.0,0.00021918,2]
[424696700,1781057452000,-166.0,0.00021918,2]
[424696696,1781057452000,-166.0,0.00021918,2]
[424696709,1781057452000,-202.48578994,0.00021918,30]
[424696711,1781057452000,-299.10020236,0.00021918,30]
[424696715,1781057452000,-1934.0,0.00021918,2]
[424696726,1781057452000,-151.0,0.00021918,2]
[424696728,1781057452000,-151.0,0.00021918,2]
[424696707,1781057452000,-188.15009585,0.00021918,30]
[424696717,1781057452000,-150.0,0.00021918,2]
[424696724,1781057452000,-279.757438,0.00021918,2]
[424696719,1781057452000,-151.0,0.00021918,2]
[424696721,1781057452000,-151.0,0.00021918,2]
[424696733,1781057452000,-500.0,0.0002197,2]
[424696735,1781057452000,-160.0,0.00022,2]
[424696737,1781057452000,-300.0,0.00022,2]
[424696740,1781057452000,-4625.144155,0.00022,2]
[424696770,1781057452000,-188.09129994,0.00022233,2]
[424696775,1781057452000,-188.41146214,0.00022235,2]
[424696769,1781057452000,-241.6875,0.00022233,2]
[424696825,1781057452000,-150.0,0.00022433,2]
[424696827,1781057452000,-1358.0,0.00022433,2]
[424696824,1781057452000,-150.0,0.00022433,2]
[424696826,1781057452000,-3556.0,0.00022433,2]
[424696829,1781057452000,-382.0,0.00022433,2]
[424696828,1781057452000,-1274.0,0.00022433,2]
[424696831,1781057452000,-1576.87,0.00022466,2]
[424696833,1781057452000,-1315.84,0.00022466,2]
[424696832,1781057452000,-507.22,0.00022466,2]
[424696837,1781057452000,-168.32,0.00022603,2]
[424696830,1781057452000,-1227.0,0.00022433,2]
[424696836,1781057452000,-3669.2763368,0.000226,2]
[424696834,1781057452000,-685.09,0.00022466,2]
[424696835,1781057452000,-36125.91787722,0.000225,2]
[424696839,1781057452000,-350.0,0.00022625,4]
[424696838,1781057452000,-4945.0,0.00022614,2]
[424696840,1781057452000,-532.6163973,0.0002271,2]
[424696841,1781057452000,-188.41146214,0.00022783,2]
[424696842,1781057452000,-310.078125,0.00022783,2]
[424696844,1781057452000,-200.0,0.00022783,2]
[424696846,1781057452000,-151.0,0.00022783,2]
[424696843,1781057452000,-217.15233878,0.00022783,2]
[424696766,1781057452000,-308.24,0.000222,2]
[424696819,1781057452000,-150.0,0.00022433,2]
[424696822,1781057452000,-150.0,0.00022433,2]
[424696845,1781057452000,-260.4103811,0.00022783,2]
[424696823,1781057452000,-150.0,0.00022433,2]
[424696774,1781057452000,-747.80937859,0.00022234,2]
[424696784,1781057452000,-151.0,0.00022235,2]
[424696778,1781057452000,-209.40437684,0.00022235,2]
[424696780,1781057452000,-200.0,0.00022235,2]
[424696776,1781057452000,-310.078125,0.00022235,2]
[424696782,1781057452000,-251.11897888,0.00022235,2]
[424696817,1781057452000,-150.0,0.00022433,2]
[424696795,1781057452000,-2494.55939288,0.00022235,2]
[424696793,1781057452000,-251.11897888,0.00022235,2]
[424696791,1781057452000,-151.0,0.00022235,2]
[424696789,1781057452000,-151.0,0.00022235,2]
[424696787,1781057452000,-200.0,0.00022235,2]
[424696800,1781057452000,-1610.6,0.00022353,2]
[424696798,1781057452000,-251.11897888,0.00022235,2]
[424696815,1781057452000,-150.0,0.00022433,2]
[424696813,1781057452000,-150.0,0.00022433,2]
[424696811,1781057452000,-150.0,0.00022433,2]
[424696808,1781057452000,-150.0,0.00022433,2]
[424696821,1781057452000,-150.0,0.00022433,2]
[424696805,1781057452000,-150.0,0.00022433,2]
[424696804,1781057452000,-317.158611,0.00022433,2]
[424696803,1781057452000,-936.974187,0.00022407,2]
[424696802,1781057452000,-936.97418703,0.00022407,2]
[424696806,1781057452000,-150.0,0.00022433,2]
[424696896,1781057453000,-196.0,0.00023628,10]
[424696876,1781057453000,-188.41146214,0.00023331,2]
[424696874,1781057453000,-2000.0,0.00023318,7]
[424696878,1781057453000,-225.18697532,0.00023331,2]
[424696875,1781057453000,-1125.0,0.00023325,2]
[424696877,1781057453000,-310.078125,0.00023331,2]
[424696880,1781057453000,-200.0,0.00023331,2]
[424696879,1781057453000,-270.0455652,0.00023331,2]
[424696881,1781057453000,-151.0,0.00023331,2]
[424696893,1781057453000,-200.0,0.00023581,2]
[424696894,1781057453000,-241.6875,0.00023602,2]
[424696882,1781057453000,-200.0,0.00023331,2]
[424696885,1781057453000,-2682.57183977,0.00023331,2]
[424696889,1781057453000,-1174.85850913,0.000235,2]
[424696886,1781057453000,-270.0455652,0.00023331,2]
[424696887,1781057453000,-270.0455652,0.00023331,2]
[424696888,1781057453000,-6931.97,0.00023392,7]
[424696890,1781057453000,-390.0,0.00023505,2]
[424696884,1781057453000,-151.0,0.00023331,2]
[424696891,1781057453000,-390.0,0.00023542,2]
[424696892,1781057453000,-174.25,0.00023564,2]
[424696872,1781057453000,-386.50968401,0.00023258,2]
[424696883,1781057453000,-151.0,0.00023331,2]
[424696873,1781057453000,-150.0,0.00023288,2]
[424696861,1781057453000,-1366.0,0.00023,2]
[424696870,1781057453000,-350.65369754,0.000232,2]
[424696847,1781057453000,-200.0,0.00022783,2]
[424696849,1781057453000,-151.0,0.00022783,2]
[424696859,1781057453000,-3594.0,0.00023,2]
[424696848,1781057453000,-151.0,0.00022783,2]
[424696854,1781057453000,-2388.04086131,0.00023,2]
[424696856,1781057453000,-2186.0,0.00023,2]
[424696853,1781057453000,-200.0,0.00022808,2]
[424696852,1781057453000,-260.4103811,0.00022783,2]
[424696850,1781057453000,-2586.85809042,0.00022783,2]
[424696855,1781057453000,-4625.144155,0.00023,2]
[424696871,1781057453000,-1713.359367,0.000232,7]
[424696851,1781057453000,-260.4103811,0.00022783,2]
[424696857,1781057453000,-877.0,0.00023,2]
[424696860,1781057453000,-800.0,0.00023,2]
[424696869,1781057453000,-835.0,0.00023,2]
[424696868,1781057453000,-4559.0,0.00023,2]
[424696865,1781057453000,-752.0,0.00023,2]
[424696867,1781057453000,-214.318029,0.00023,2]
[424696864,1781057453000,-846.0,0.00023,2]
[424696866,1781057453000,-2363.0,0.00023,2]
[424696862,1781057453000,-379.0,0.00023,2]
[424696863,1781057453000,-692.0,0.00023,2]
[424696858,1781057453000,-684.0,0.00023,2]
[424696897,1781057453000,-105827.8934364,0.00023638,2]
[424696919,1781057453000,-2781.82699784,0.00023879,2]
[424696899,1781057453000,-834.96,0.00023654,7]
[424696926,1781057453000,-4625.144155,0.00024,2]
[424696930,1781057453000,-3594.0,0.00024,2]
[424696927,1781057453000,-2191.9981003,0.00024,2]
[424696934,1781057453000,-500.0,0.00024,2]
[424696932,1781057453000,-1370.83941554,0.00024,2]
[424696924,1781057453000,-1258.41890825,0.00024,2]
[424696928,1781057453000,-894.65877664,0.00024,2]
[424696933,1781057453000,-382.52135884,0.00024,2]
[424696929,1781057453000,-697.07711541,0.00024,2]
[424696931,1781057453000,-819.76624426,0.00024,2]
[424696936,1781057453000,-855.0,0.00024,2]
[424696941,1781057453000,-390.0,0.00024041,2]
[424696940,1781057453000,-849.76701402,0.00024,2]
[424696939,1781057453000,-4573.56207833,0.00024,2]
[424696942,1781057453000,-390.0,0.00024048,2]
[424696947,1781057453000,-390.0,0.00024199,2]
[424696944,1781057453000,-390.0,0.00024103,2]
[424696945,1781057453000,-390.0,0.00024184,2]
[424696946,1781057453000,-390.0,0.0002419,2]
[424696938,1781057453000,-2375.0,0.00024,2]
[424696948,1781057453000,-3766.23093221,0.0002421,2]
[424696902,1781057453000,-1272.64,0.00023654,7]
[424696943,1781057453000,-687.3,0.000241,7]
[424696935,1781057453000,-703.0,0.00024,2]
[424696937,1781057453000,-762.3996865,0.00024,2]
[424696923,1781057453000,-3600.0,0.00024,2]
[424696925,1781057453000,-158.0,0.00024,7]
[424696898,1781057453000,-240.67988658,0.00023641,2]
[424696901,1781057453000,-602.36,0.00023654,7]
[424696900,1781057453000,-1126.81,0.00023654,7]
[424696903,1781057453000,-390.0,0.00023683,2]
[424696905,1781057453000,-150.0,0.0002375,2]
[424696895,1781057453000,-233.5188934,0.00023602,2]
[424696908,1781057453000,-390.0,0.00023858,2]
[424696907,1781057453000,-381.0,0.00023856,2]
[424696909,1781057453000,-188.41146214,0.00023879,2]
[424696910,1781057453000,-310.078125,0.00023879,2]
[424696906,1781057453000,-390.0,0.00023759,2]
[424696913,1781057453000,-200.0,0.00023879,2]
[424696914,1781057453000,-152.72359966,0.00023879,2]
[424696912,1781057453000,-280.03725111,0.00023879,2]
[424696911,1781057453000,-233.5188934,0.00023879,2]
[424696917,1781057453000,-151.0,0.00023879,2]
[424696916,1781057453000,-151.0,0.00023879,2]
[424696915,1781057453000,-200.0,0.00023879,2]
[424696921,1781057453000,-390.0,0.00023942,2]
[424696920,1781057453000,-280.03725111,0.00023879,2]
[424696918,1781057453000,-337.5791174,0.00023879,2]
[424696904,1781057453000,-390.0,0.00023727,2]
[424696922,1781057453000,-1040.73102604,0.00024,2]
[424696989,1781057454000,-6015.22,0.00024658,2]
[424696993,1781057454000,-163.944773,0.00024658,2]
[424696986,1781057454000,-156358.0,0.000246,2]
[424696983,1781057454000,-390.0,0.0002457,2]
[424696981,1781057454000,-1125.0,0.00024491,2]
[424696984,1781057454000,-390.0,0.00024582,2]
[424696978,1781057454000,-2884.75459676,0.00024427,2]
[424696980,1781057454000,-390.0,0.00024489,2]
[424696990,1781057454000,-163.944773,0.00024658,2]
[424696985,1781057454000,-390.0,0.00024592,2]
[424696995,1781057454000,-163.944773,0.00024658,2]
[424696999,1781057454000,-163.944773,0.00024658,2]
[424696992,1781057454000,-163.944773,0.00024658,2]
[424696996,1781057454000,-163.944773,0.00024658,2]
[424696991,1781057454000,-163.944773,0.00024658,2]
[424696994,1781057454000,-163.944773,0.00024658,2]
[424696987,1781057454000,-172.34398924,0.0002465,2]
[424696998,1781057454000,-163.944773,0.00024658,2]
[424697008,1781057454000,-455.373624,0.00024658,2]
[424697001,1781057454000,-163.944773,0.00024658,2]
[424696997,1781057454000,-163.944773,0.00024658,2]
[424697003,1781057454000,-455.373624,0.00024658,2]
[424697002,1781057454000,-455.373624,0.00024658,2]
[424696979,1781057454000,-290.3986294,0.00024427,2]
[424696988,1781057454000,-6015.22,0.00024658,2]
[424696977,1781057454000,-151.0,0.00024427,2]
[424696955,1781057454000,-6075.0,0.00024232,2]
[424696976,1781057454000,-151.0,0.00024427,2]
[424696949,1781057454000,-151.0,0.0002421,2]
[424696954,1781057454000,-218.445469,0.0002421,2]
[424696956,1781057454000,-1214.0,0.00024232,2]
[424697000,1781057454000,-163.944773,0.00024658,2]
[424696961,1781057454000,-390.0,0.00024348,2]
[424696958,1781057454000,-687.3,0.000243,7]
[424696960,1781057454000,-390.0,0.00024329,2]
[424696952,1781057454000,-218.445469,0.0002421,2]
[424696957,1781057454000,-3643.0,0.00024232,2]
[424696959,1781057454000,-1610.6,0.00024324,2]
[424696950,1781057454000,-151.0,0.0002421,2]
[424696951,1781057454000,-218.445469,0.0002421,2]
[424696975,1781057454000,-200.0,0.00024427,2]
[424696953,1781057454000,-218.445469,0.0002421,2]
[424696967,1781057454000,-1234.46,0.00024364,7]
[424696964,1781057454000,-809.91,0.00024364,7]
[424696966,1781057454000,-584.29,0.00024364,7]
[424696969,1781057454000,-381.0,0.00024405,2]
[424696973,1781057454000,-290.3986294,0.00024427,2]
[424696971,1781057454000,-310.078125,0.00024427,2]
[424696968,1781057454000,-390.0,0.0002439,2]
[424696970,1781057454000,-188.41146214,0.00024427,2]
[424696965,1781057454000,-1093.01,0.00024364,7]
[424696972,1781057454000,-242.15909246,0.00024427,2]
[424696974,1781057454000,-202.70711956,0.00024427,2]
[424696963,1781057454000,-200.0,0.00024354,2]
[424696962,1781057454000,-6594.0,0.00024354,2]
[424697004,1781057454000,-455.373624,0.00024658,2]
[424696982,1781057454000,-168.95797687,0.0002455,15]
[424697007,1781057454000,-455.373624,0.00024658,2]
[424697036,1781057454000,-206.0,0.00024815,2]
[424697040,1781057454000,-242.15909246,0.00024971,2]
[424697035,1781057454000,-390.0,0.00024808,2]
[424697041,1781057454000,-151.0,0.00024973,2]
[424697037,1781057454000,-298.5,0.00024825,2]
[424697039,1781057454000,-241.6875,0.00024971,2]
[424697038,1781057454000,-500.0,0.0002497,2]
[424697046,1781057454000,-251.11897888,0.00024975,2]
[424697048,1781057454000,-200.0,0.00024975,2]
[424697006,1781057454000,-455.373624,0.00024658,2]
[424697045,1781057454000,-310.078125,0.00024975,2]
[424697052,1781057454000,-301.14337869,0.00024975,2]
[424697044,1781057454000,-188.41146231,0.00024975,2]
[424697053,1781057454000,-700.0,0.0002499,30]
[424697049,1781057454000,-151.0,0.00024975,2]
[424697050,1781057454000,-151.0,0.00024975,2]
[424697051,1781057454000,-2991.49051684,0.00024975,2]
[424697056,1781057454000,-300.0,0.00024999,10]
[424697055,1781057454000,-300.0,0.00024999,10]
[424697058,1781057454000,-300.0,0.00024999,10]
[424697062,1781057454000,-300.0,0.00024999,10]
[424697057,1781057454000,-300.0,0.00024999,10]
[424697061,1781057454000,-300.0,0.00024999,10]
[424697059,1781057454000,-666.0,0.00024999,2]
[424697063,1781057454000,-300.0,0.00024999,10]
[424697060,1781057454000,-300.0,0.00024999,10]
[424697054,1781057454000,-184.70668,0.00024997,7]
[424697034,1781057454000,-1018.0,0.000248,15]
[424697047,1781057454000,-301.14337869,0.00024975,2]
[424697043,1781057454000,-775.4783256,0.00024973,2]
[424697005,1781057454000,-455.373624,0.00024658,2]
[424697042,1781057454000,-621.78829552,0.00024973,2]
[424697009,1781057454000,-455.373624,0.00024658,2]
[424697012,1781057454000,-455.373624,0.00024658,2]
[424697017,1781057454000,-999.360126,0.00024658,2]
[424697018,1781057454000,-999.360126,0.00024658,2]
[424697014,1781057454000,-1000.0,0.00024658,2]
[424697020,1781057454000,-999.360126,0.00024658,2]
[424697013,1781057454000,-455.373624,0.00024658,2]
[424697019,1781057454000,-999.360126,0.00024658,2]
[424697021,1781057454000,-999.360126,0.00024658,2]
[424697010,1781057454000,-455.373624,0.00024658,2]
[424697015,1781057454000,-850.23,0.00024658,2]
[424697011,1781057454000,-455.373624,0.00024658,2]
[424697023,1781057454000,-999.360126,0.00024658,2]
[424697016,1781057454000,-999.360126,0.00024658,2]
[424697030,1781057454000,-521.2725147,0.00024658,2]
[424697028,1781057454000,-150.0,0.00024658,2]
[424697029,1781057454000,-500.0,0.00024658,2]
[424697026,1781057454000,-999.360126,0.00024658,2]
[424697027,1781057454000,-999.360126,0.00024658,2]
[424697024,1781057454000,-999.360126,0.00024658,2]
[424697033,1781057454000,-1335.32,0.00024776,7]
[424697032,1781057454000,-225.0,0.00024746,2]
[424697022,1781057454000,-999.360126,0.00024658,2]
[424697031,1781057454000,-381.0,0.00024679,2]
[424697025,1781057454000,-999.360126,0.00024658,2]
[424697071,1781057455000,-666.0,0.00024999,2]
[424697065,1781057455000,-300.0,0.00024999,10]
[424697064,1781057455000,-300.0,0.00024999,10]
[424697066,1781057455000,-300.0,0.00024999,10]
[424697070,1781057455000,-666.0,0.00024999,2]
[424697069,1781057455000,-306.54912573,0.00024999,10]
[424697075,1781057455000,-1815.01307875,0.00025,2]
[424697067,1781057455000,-300.0,0.00024999,10]
[424697068,1781057455000,-300.0,0.00024999,10]
[424697078,1781057455000,-621.07969832,0.00025,2]
[424697072,1781057455000,-671.43968731,0.00024999,2]
[424697074,1781057455000,-210.99144652,0.00025,2]
[424697073,1781057455000,-1132.71453791,0.00025,2]
[424697077,1781057455000,-540.0,0.00025,2]
[424697080,1781057455000,-7249.04893292,0.00025,2]
[424697079,1781057455000,-3094.65801844,0.00025,2]
[424697082,1781057455000,-2237.57180312,0.00025,2]
[424697083,1781057455000,-170.1426362,0.00025,2]
[424697081,1781057455000,-40707.29858851,0.00025,7]
[424697084,1781057455000,-62181.43178718,0.00025,2]
[424697076,1781057455000,-2000.0,0.00025,2]
[424697086,1781057456000,-462.46677255,0.00025,2]
[424697085,1781057456000,-184.0418703,0.000199,2]
[424697087,1781057456000,-42709.74884361,0.00025,2]
[424697089,1781057456000,-503.33128176,0.00013024,2]
[424697090,1781057456000,-755552.09806995,0.00013024,2]
[424697092,1781057456000,-719.51218182,0.00013024,2]
[424697088,1781057456000,-20620.28,0.00013024,2]
[424697091,1781057456000,-428.53781818,0.00013024,2]
[424697106,1781057457000,-295.5,0.00013024,2]
[424697093,1781057457000,-232976.08889174,0.00013024,2]
[424697095,1781057457000,-18388.59211947,0.00013024,2]
[424697094,1781057457000,-4282.94769063,0.00013024,2]
[424697098,1781057457000,-1042.73,0.00013024,2]
[424697100,1781057457000,-43004.68722742,0.00013024,2]
[424697096,1781057457000,-2257.55911124,0.00013024,2]
[424697101,1781057457000,-16297.24403656,0.00013024,2]
[424697103,1781057457000,-934.07488738,0.00013024,2]
[424697102,1781057457000,-67982.37060066,0.00013024,2]
[424697104,1781057457000,-1235.34021761,0.00013024,2]
[424697105,1781057457000,-4468.79868492,0.00013024,2]
[424697107,1781057457000,-3108.26998069,0.00013024,2]
[424697099,1781057457000,-36237.60652477,0.00013024,2]
[424697097,1781057457000,-764.49364756,0.00013024,2]
[424697108,1781057471000,418.971142,0.00025008,120]
[424697109,1781057493000,-9079.21,0.00013024,2]
[424697110,1781057601000,2000.0,0.00027675,120]
[424697111,1781057611000,1000.0,0.00030025,120]
[424697113,1781057929000,277.98489294,0.0003013,120]
[424697119,1781058205000,1000.0,0.00029561,120]
[424697120,1781058289000,303.23322691,0.00030135,120]
[424697129,1781058376000,495.780172,0.00030137,120]
[424697130,1781058506000,3323.475,0.00030136,120]
[424697138,1781058632000,-1573.1,0.0001,2]
[424697137,1781058632000,-5844.4496971,0.0001,2]
[424697139,1781058632000,-464.12272072,0.0001,2]
[424697140,1781058633000,-465.09659905,0.0001,2]
[424697212,1781058639000,-35594.98203514,0.000123,2]
[424697225,1781058639000,-8486.56,0.00012478,2]
[424697230,1781058639000,-376.04,0.00012491,2]
[424697232,1781058639000,-400.52,0.00012654,2]
[424697235,1781058639000,-7020.86738659,0.00012855,2]
[424697237,1781058639000,-155.84,0.00012893,2]
[424697246,1781058639000,-500.0,0.00013023,2]
[424697228,1781058639000,-1222.29,0.00012487,2]
[424697239,1781058639000,-1375.55287143,0.00012924,2]
[424697244,1781058639000,-400.52,0.00012962,2]
[424697249,1781058639000,-445.0,0.00013024,2]
[424697253,1781058639000,-457.0,0.00013024,2]
[424697209,1781058639000,-2000.0,0.00012245,2]
[424697251,1781058639000,-453.0,0.00013024,2]
[424697259,1781058639000,-14697.6415,0.00013024,2]
[424697255,1781058639000,-450.0,0.00013024,2]
[424697257,1781058639000,-444.0,0.00013024,2]
[424697260,1781058639000,-457.0,0.00013024,2]
[424697264,1781058639000,-443.0,0.00013024,2]
[424697266,1781058639000,-449.0,0.00013024,2]
[424697242,1781058639000,-500.1525,0.00012924,2]
[424697207,1781058639000,-1852.42,0.00012178,2]
[424697168,1781058639000,-19.59936939,0.00010014,2]
[424697223,1781058639000,-7020.86738659,0.00012446,2]
[424697166,1781058639000,-1880.40063061,0.0001,2]
[424697173,1781058639000,-263.13732203,0.000101,2]
[424697175,1781058639000,-150.0,0.00010299,2]
[424697180,1781058639000,-952.99622919,0.000103,2]
[424697171,1781058639000,-196.32439945,0.00010014,2]
[424697176,1781058639000,-1640.53827852,0.000103,2]
[424697178,1781058639000,-1436.80674822,0.000103,2]
[424697183,1781058639000,-1154.875,0.000103,2]
[424697198,1781058639000,-247.97,0.00011818,2]
[424697221,1781058639000,-398.71728321,0.00012445,2]
[424697196,1781058639000,-7020.86738659,0.00011628,2]
[424697187,1781058639000,-206325.02704108,0.000103,2]
[424697190,1781058639000,-2122.83641346,0.00011101,2]
[424697192,1781058639000,-7020.86738659,0.00011219,2]
[424697200,1781058639000,-155.84,0.00012033,2]
[424697202,1781058639000,-500.0,0.00012036,2]
[424697214,1781058639000,-174.26,0.00012329,2]
[424697205,1781058639000,-7020.86738659,0.00012037,2]
[424697216,1781058639000,-400.52,0.00012345,2]
[424697219,1781058639000,-433.0,0.00012441,2]
[424697194,1781058639000,-255.0,0.00011319,2]
[424697271,1781058639000,-456.0,0.00013024,2]
[424697269,1781058639000,-454.0,0.00013024,2]
[424697283,1781058639000,-449.0,0.00013024,2]
[424697337,1781058639000,-444.0,0.00013024,2]
[424697334,1781058639000,-445.0,0.00013024,2]
[424697324,1781058639000,-442.0,0.00013024,2]
[424697326,1781058639000,-454.0,0.00013024,2]
[424697341,1781058639000,-459.0,0.00013024,2]
[424697343,1781058639000,-447.0,0.00013024,2]
[424697346,1781058639000,-449.0,0.00013024,2]
[424697350,1781058639000,-455.0,0.00013024,2]
[424697355,1781058639000,-447.0,0.00013024,2]
[424697352,1781058639000,-451.0,0.00013024,2]
[424697357,1781058639000,-160.0,0.00013076,2]
[424697362,1781058639000,-456.0,0.00013124,2]
[424697360,1781058639000,-339.37122248,0.00013092,2]
[424697364,1781058639000,-459.0,0.00013124,2]
[424697378,1781058639000,-331.91923479,0.00013324,2]
[424697366,1781058639000,-1375.55287143,0.00013206,2]
[424697369,1781058639000,-250.0,0.00013213,2]
[424697373,1781058639000,-400.52,0.00013271,2]
[424697371,1781058639000,-7020.86738659,0.00013264,2]
[424697376,1781058639000,-277.04628988,0.00013324,2]
[424697280,1781058639000,-448.0,0.00013024,2]
[424697339,1781058639000,-450.0,0.00013024,2]
[424697321,1781058639000,-445.0,0.00013024,2]
[424697348,1781058639000,-456.0,0.00013024,2]
[424697332,1781058639000,-456.0,0.00013024,2]
[424697328,1781058639000,-457.0,0.00013024,2]